bitfinex/quotes_BTCUSD_20241003
["timestamp","ask_amount","ask_price","bid_price","bid_amount"]
[1727964390851,0.0829,60755.0,60751.0,0.005]
[1727964391085,0.164593,60756.0,60755.0,0.005]
[1727964391571,0.164598,60754.0,60753.0,0.005]
[1727964393139,0.001,60755.0,60754.0,0.174598]
[1727964393402,0.001,60755.0,60754.0,0.2582992]
[1727964393629,0.001,60755.0,60748.0,0.43500372]
[1727964393630,0.24670038,60771.0,60762.0,0.01]
[1727964393866,0.43500372,60766.0,60762.0,0.01]
[1727964394105,0.43500372,60766.0,60736.0,0.329293]
[1727964394106,0.164576,60762.0,60761.0,0.005]
[1727964394790,0.35491607,60769.0,60762.0,0.01]
[1727964394791,0.02580107,60769.0,60762.0,0.01]
[1727964395024,0.27250145,60769.0,60767.0,0.174562]
[1727964395543,0.02580107,60769.0,60767.0,0.01]
[1727964397363,0.02680107,60769.0,60767.0,0.014]
[1727964397588,0.02580107,60769.0,60767.0,0.01]
[1727964397849,0.02580107,60769.0,60761.0,0.331153]
[1727964397850,0.02580107,60769.0,60768.0,0.01]
[1727964398084,0.02680107,60769.0,60768.0,0.01]
[1727964398340,0.164563,60767.0,60766.0,0.01]
[1727964398627,0.02580107,60769.0,60765.0,0.01]
[1727964398628,0.02680107,60769.0,60765.0,0.01]
[1727964398916,0.164584,60759.0,60758.0,0.005]
[1727964399160,0.164587,60758.0,60757.0,0.25170038]
[1727964399422,0.164587,60758.0,60755.0,0.005]
[1727964399423,0.164592,60756.0,60755.0,0.01]
[1727964399965,0.43500372,60762.0,60756.0,0.005]
[1727964400193,0.16459,60757.0,60756.0,0.005]
[1727964400447,0.329166,60760.0,60756.0,0.005]
[1727964400700,0.1,60766.0,60756.0,0.005]
[1727964400932,0.16459,60757.0,60756.0,0.005]
[1727964401191,0.32917,60759.0,60746.0,0.01]
[1727964401426,0.164603,60752.0,60746.0,0.01]
[1727964401684,0.164603,60752.0,60744.0,0.24670038]
[1727964401685,0.164603,60752.0,60747.0,0.01]
[1727964401950,0.1,60764.0,60744.0,0.24670038]
[1727964401951,0.24670038,60769.0,60758.0,0.005]
[1727964402260,0.24670038,60769.0,60764.0,0.01]
[1727964402415,0.24670038,60769.0,60768.0,0.01]
[1727964402657,0.24670038,60769.0,60768.0,0.012]
[1727964402902,0.24670038,60778.0,60768.0,0.012]
[1727964403170,0.24670038,60778.0,60752.0,0.76420572]
[1727964403171,0.02580104,60782.0,60781.0,0.002]
[1727964403405,0.098515,60784.0,60762.0,0.43500372]
[1727964403406,0.098515,60784.0,60780.0,0.002]
[1727964403686,0.000815,60784.0,60783.0,0.01]
[1727964404181,0.000815,60784.0,60783.0,0.012]
[1727964404408,0.000815,60784.0,60783.0,0.176519]
[1727964404637,0.000815,60784.0,60783.0,0.28465204]
[1727964405327,0.24751538,60800.0,60799.0,0.174476]
[1727964405809,0.000815,60800.0,60799.0,0.174476]
[1727964406077,0.000815,60800.0,60799.0,0.33766271]
[1727964406300,0.000815,60800.0,60799.0,0.44525166]
[1727964406539,0.24761638,60808.0,60807.0,0.176454]
[1727964406791,0.24761638,60808.0,60806.0,0.01]
[1727964407014,0.165368,60808.0,60807.0,0.005]
[1727964407239,0.165368,60808.0,60807.0,0.01]
[1727964407240,0.000916,60808.0,60807.0,0.01]
[1727964407731,0.01881894,60808.0,60807.0,0.011]
[1727964407966,0.20904459,60808.0,60807.0,0.011]
[1727964408196,0.164454,60807.0,60806.0,0.01]
[1727964408455,0.18130851,60807.0,60806.0,0.01]
[1727964408707,0.18130851,60807.0,60797.0,0.005]
[1727964408708,0.164479,60798.0,60797.0,0.005]
[1727964408937,0.000817,60812.0,60811.0,0.01]
[1727964409172,0.000817,60812.0,60811.0,0.174443]
[1727964409400,0.000817,60812.0,60811.0,0.26827737]
[1727964409934,0.000817,60812.0,60811.0,0.43278383]
[1727964410177,0.24670038,60822.0,60818.0,0.64247872]
[1727964410419,0.24670038,60822.0,60818.0,0.77261543]
[1727964410678,0.24670038,60831.0,60818.0,0.77261543]
[1727964410679,0.24670038,60831.0,60818.0,0.61019043]
[1727964410960,0.0005,60832.0,60831.0,0.176389]
[1727964411300,0.0005,60832.0,60831.0,0.33957571]
[1727964411497,0.0159355,60835.0,60834.0,0.176381]
[1727964411744,0.0159355,60835.0,60834.0,0.012]
[1727964411983,0.0159355,60835.0,60834.0,0.01959417]
[1727964412218,0.0159355,60835.0,60834.0,0.01]
[1727964412451,0.0159355,60835.0,60834.0,0.03039792]
[1727964412683,0.0159355,60835.0,60834.0,0.012]
[1727964412910,0.0159355,60835.0,60834.0,0.01]
[1727964413191,0.164381,60834.0,60833.0,0.01]
[1727964413464,0.1803145,60835.0,60834.0,0.005]
[1727964413688,0.164384,60833.0,60832.0,0.01]
[1727964414179,0.328763,60834.0,60828.0,0.005]
[1727964414180,0.164395,60829.0,60828.0,0.005]
[1727964414688,0.328769,60833.0,60828.0,0.005]
[1727964414942,0.164395,60829.0,60828.0,0.005]
[1727964415239,0.32878,60831.0,60822.0,0.002]
[1727964415240,0.164411,60823.0,60822.0,0.005]
[1727964415496,0.164416,60821.0,60820.0,0.24670038]
[1727964415763,0.164435,60814.0,60813.0,0.005]
[1727964415991,0.256015,60822.0,60816.0,0.005]
[1727964416254,0.01684552,60821.0,60816.0,0.005]
[1727964416505,0.0916,60822.0,60816.0,0.005]
[1727964417253,0.0916,60822.0,60816.0,0.01]
[1727964417572,0.0916,60822.0,60819.0,0.24670038]
[1727964417783,0.0916,60822.0,60816.0,0.014]
[1727964417784,0.26263588,60835.0,60834.0,0.01]
[1727964418263,0.0159355,60835.0,60834.0,0.01]
[1727964418971,0.0159355,60835.0,60834.0,0.005]
[1727964419457,0.0159355,60835.0,60834.0,0.01]
[1727964419685,0.0159355,60835.0,60834.0,0.174381]
[1727964419945,0.0159355,60835.0,60834.0,0.01]
[1727964420437,0.0159355,60835.0,60834.0,0.174381]
[1727964420740,0.0159355,60835.0,60834.0,0.42108138]
[1727964420975,0.0159355,60835.0,60834.0,0.174381]
[1727964421240,0.0159355,60835.0,60834.0,0.3083149]
[1727964421513,0.0159355,60835.0,60834.0,0.174381]
[1727964421736,0.0167535,60835.0,60834.0,0.187381]
[1727964421976,0.0167535,60835.0,60834.0,0.189381]
[1727964423240,0.0167535,60835.0,60834.0,0.012]
[1727964423489,0.0167535,60835.0,60834.0,0.190381]
[1727964423720,0.0167535,60835.0,60834.0,0.176381]
[1727964423946,0.24670038,60850.0,60846.0,0.002]
[1727964423947,0.06446888,60850.0,60846.0,0.002]
[1727964424233,0.06446888,60850.0,60849.0,0.01]
[1727964424462,0.0965,60851.0,60847.0,0.328693]
[1727964424463,0.0965,60851.0,60850.0,0.01]
[1727964424732,0.24670038,60856.0,60854.0,0.005]
[1727964424980,0.24670038,60863.0,60854.0,0.01]
[1727964425241,0.329437,60861.0,60854.0,0.01]
[1727964425549,0.000815,60861.0,60858.0,0.41601638]
[1727964425811,0.0001069,60870.0,60869.0,0.174287]
[1727964426601,0.0001069,60870.0,60869.0,0.18180106]
[1727964426842,0.0001069,60870.0,60869.0,0.34498777]
[1727964427084,0.0002,60879.0,60878.0,0.60926572]
[1727964427341,0.0002,60879.0,60878.0,0.174262]
[1727964427598,0.0002,60879.0,60878.0,0.61662509]
[1727964427841,0.0002,60879.0,60878.0,0.71909789]
[1727964428072,0.0002,60879.0,60878.0,0.8822846]
[1727964428313,0.0002,60879.0,60878.0,0.8842846]
[1727964428573,0.0002,60879.0,60878.0,0.72109789]
[1727964428802,0.0002,60879.0,60878.0,0.8842846]
[1727964429040,0.0002,60879.0,60878.0,0.72109789]
[1727964429281,0.0002,60879.0,60878.0,0.18362137]
[1727964429520,0.0002,60879.0,60878.0,0.62526572]
[1727964430010,0.0002,60879.0,60878.0,0.61126572]
[1727964430534,0.0002,60879.0,60878.0,0.024]
[1727964430781,0.0002,60879.0,60878.0,0.174262]
[1727964431018,0.0002,60879.0,60878.0,0.23564303]
[1727964431265,0.0002,60879.0,60878.0,0.05409624]
[1727964431510,0.0002,60879.0,60878.0,0.012]
[1727964432244,0.0002,60879.0,60878.0,0.176262]
[1727964432490,0.0002,60879.0,60878.0,0.3417726]
[1727964432790,0.0002,60879.0,60878.0,0.38649871]
[1727964433038,0.0002,60879.0,60878.0,0.37249871]
[1727964433297,0.0002,60879.0,60878.0,0.38649871]
[1727964433526,0.0002,60879.0,60878.0,0.37249871]
[1727964433751,0.0002,60879.0,60878.0,0.38649871]
[1727964434249,0.0002,60879.0,60878.0,0.223312]
[1727964434505,0.0002,60879.0,60878.0,0.2783014]
[1727964434737,0.0002,60879.0,60878.0,0.1140394]
[1727964434969,0.0002,60879.0,60878.0,0.016]
[1727964435219,0.001018,60879.0,60878.0,0.026]
[1727964435865,0.001018,60879.0,60866.0,0.24670038]
[1727964435866,0.165278,60879.0,60865.0,0.002]
[1727964436056,0.100018,60879.0,60878.0,0.019]
[1727964436261,0.100018,60879.0,60877.0,0.005]
[1727964436501,0.164265,60877.0,60876.0,0.005]
[1727964436726,0.100018,60879.0,60859.0,0.24670038]
[1727964436727,0.592801,60879.0,60878.0,0.005]
[1727964436936,0.592801,60879.0,60878.0,0.01]
[1727964436937,0.100018,60879.0,60878.0,0.01]
[1727964437134,0.100018,60879.0,60878.0,0.016]
[1727964437582,0.100018,60879.0,60878.0,0.01]
[1727964438173,0.264278,60879.0,60878.0,0.01]
[1727964438388,0.264278,60879.0,60868.0,0.24670038]
[1727964438389,0.164262,60878.0,60877.0,0.005]
[1727964438805,0.100018,60879.0,60878.0,0.01]
[1727964439396,0.100018,60879.0,60878.0,0.016]
[1727964439595,0.001018,60879.0,60878.0,0.01]
[1727964439798,0.001018,60879.0,60878.0,0.004]
[1727964440188,0.165278,60879.0,60878.0,0.006]
[1727964440446,0.001018,60879.0,60867.0,0.004]
[1727964440686,0.3286,60865.0,60860.0,0.004]
[1727964440913,0.3286,60865.0,60859.0,0.24670038]
[1727964440914,0.164292,60867.0,60866.0,0.004]
[1727964441378,0.328574,60870.0,60866.0,0.004]
[1727964441379,0.164289,60869.0,60866.0,0.004]
[1727964441654,0.164298,60865.0,60864.0,0.004]
[1727964442173,0.24670038,60872.0,60864.0,0.004]
[1727964442174,0.164293,60867.0,60866.0,0.004]
[1727964442401,0.164278,60873.0,60872.0,0.004]
[1727964442829,0.328536,60876.0,60872.0,0.004]
[1727964443047,0.164276,60873.0,60872.0,0.004]
[1727964443268,0.328558,60872.0,60870.0,0.004]
[1727964443482,0.164281,60871.0,60870.0,0.004]
[1727964443705,0.18108221,60871.0,60870.0,0.004]
[1727964444422,0.328575,60869.0,60866.0,0.004]
[1727964444641,0.164295,60866.0,60865.0,0.009]
[1727964445096,0.328569,60870.0,60866.0,0.004]
[1727964445301,0.164292,60867.0,60866.0,0.004]
[1727964445411,0.18107405,60867.0,60866.0,0.004]
[1727964445674,0.328596,60865.0,60860.0,0.009]
[1727964445880,0.43500372,60862.0,60855.0,0.004]
[1727964446109,0.43500372,60862.0,60853.0,0.0017]
[1727964446110,0.164327,60854.0,60853.0,0.0017]
[1727964447501,0.59931172,60861.0,60853.0,0.0017]
[1727964447725,0.24670038,60857.0,60853.0,0.0017]
[1727964447984,0.164327,60855.0,60853.0,0.0017]
[1727964448190,0.1,60858.0,60853.0,0.0017]
[1727964448636,0.43500372,60856.0,60853.0,0.0087]
[1727964448851,0.43500372,60856.0,60853.0,0.0017]
[1727964448852,0.164326,60855.0,60853.0,0.0017]
[1727964449074,0.43500372,60856.0,60853.0,0.0077]
[1727964449316,0.43500372,60856.0,60853.0,0.0017]
[1727964449786,0.59932672,60856.0,60853.0,0.0067]
[1727964449997,0.43500372,60856.0,60853.0,0.0017]
[1727964450227,0.1,60860.0,60853.0,0.0017]
[1727964450442,0.0902,60862.0,60861.0,0.009]
[1727964450672,0.24670038,60870.0,60864.0,0.009]
[1727964450912,0.24670038,60869.0,60868.0,0.009]
[1727964451148,0.0945,60876.0,60869.0,0.009]
[1727964451618,0.000818,60880.0,60876.0,0.173268]
[1727964451873,0.000818,60880.0,60876.0,0.18189452]
[1727964452125,0.000818,60880.0,60876.0,0.18368152]
[1727964452358,0.000818,60880.0,60876.0,0.34508123]
[1727964453050,0.000818,60880.0,60876.0,0.35908123]
[1727964453292,0.000818,60880.0,60876.0,0.47883013]
[1727964453539,0.000818,60880.0,60876.0,0.31564342]
[1727964453775,0.000818,60880.0,60876.0,0.31764342]
[1727964454229,0.000818,60880.0,60876.0,0.19789452]
[1727964454456,0.000818,60880.0,60876.0,0.18389452]
[1727964454687,0.000818,60880.0,60876.0,0.19789452]
[1727964455159,0.000818,60880.0,60876.0,0.18389452]
[1727964455415,0.000818,60880.0,60876.0,0.19789452]
[1727964455650,0.000818,60880.0,60876.0,0.31625067]
[1727964455874,0.000818,60880.0,60876.0,0.30225067]
[1727964456094,0.000818,60880.0,60876.0,0.31636305]
[1727964456327,0.000818,60880.0,60876.0,0.30336305]
[1727964456778,0.000818,60880.0,60876.0,0.49848738]
[1727964457044,0.000818,60880.0,60878.0,0.61026572]
[1727964457338,0.0001,60890.0,60889.0,0.173233]
[1727964457570,0.0001,60890.0,60889.0,0.77142343]
[1727964457799,0.0001,60890.0,60889.0,0.77913524]
[1727964458338,0.0799,60922.0,60889.0,0.77913524]
[1727964458339,0.23763307,60916.0,60915.0,0.173163]
[1727964458539,0.23763307,60916.0,60915.0,0.77335343]
[1727964458794,0.23763307,60916.0,60915.0,0.1813708]
[1727964459027,0.37579551,60938.0,60918.0,0.004]
[1727964459028,0.43500372,60925.0,60918.0,0.004]
[1727964459259,0.328254,60929.0,60918.0,0.004]
[1727964459260,0.098,60920.0,60918.0,0.004]
[1727964459500,0.098,60920.0,60917.0,0.004]
[1727964459779,0.0784,60918.0,60916.0,0.004]
[1727964460015,0.0784,60918.0,60917.0,0.26416682]
[1727964460254,0.098,60920.0,60917.0,0.04528312]
[1727964460483,0.098,60920.0,60918.0,0.004]
[1727964460721,0.098,60920.0,60917.0,0.00846644]
[1727964460960,0.098,60920.0,60918.0,0.00881707]
[1727964460961,0.60017372,60919.0,60918.0,0.00881707]
[1727964461194,0.164171,60912.0,60908.0,0.004]
[1727964461422,0.164171,60912.0,60911.0,0.24670038]
[1727964461651,0.164171,60912.0,60911.0,0.00888651]
[1727964461873,0.164168,60913.0,60911.0,0.00888651]
[1727964462091,0.43500372,60914.0,60904.0,0.004]
[1727964462321,0.000817,60918.0,60911.0,0.24670038]
[1727964462553,0.164974,60918.0,60905.0,0.01794658]
[1727964462776,0.000817,60918.0,60912.0,0.008939]
[1727964463005,0.000817,60918.0,60909.0,0.009]
[1727964463233,0.164973,60918.0,60910.0,0.00895811]
[1727964463738,0.000817,60918.0,60915.0,0.009]
[1727964464210,0.000817,60918.0,60910.0,0.009]
[1727964464211,0.164159,60917.0,60910.0,0.009]
[1727964464444,0.164159,60917.0,60912.0,0.004]
[1727964464445,0.328317,60917.0,60912.0,0.004]
[1727964464689,0.000817,60918.0,60896.0,0.24670038]
[1727964464690,0.43500372,60916.0,60908.0,0.004]
[1727964464924,0.328366,60908.0,60902.0,0.004]
[1727964465157,0.2548,60901.0,60900.0,0.4]
[1727964465847,0.2548,60901.0,60900.0,0.3]
[1727964466105,0.2548,60901.0,60870.0,0.001634]
[1727964466106,0.164252,60882.0,60879.0,0.004]
[1727964466341,0.164252,60882.0,60876.0,0.005]
[1727964466342,0.164252,60882.0,60876.0,0.004]
[1727964466577,0.164276,60873.0,60872.0,0.24670038]
[1727964466807,0.0815,60878.0,60870.0,0.001634]
[1727964466808,0.164281,60871.0,60870.0,0.001634]
[1727964467517,0.0815,60878.0,60870.0,0.001634]
[1727964467986,0.164281,60871.0,60870.0,0.001634]
[1727964468211,0.166281,60871.0,60870.0,0.001634]
[1727964468453,0.164281,60871.0,60870.0,0.001634]
[1727964468708,0.19003861,60871.0,60870.0,0.002634]
[1727964468946,0.19003861,60871.0,60870.0,0.001634]
[1727964469398,0.19103861,60871.0,60870.0,0.001634]
[1727964470083,0.165281,60871.0,60870.0,0.001634]
[1727964470316,0.001,60871.0,60870.0,0.001634]
[1727964470540,0.492829,60873.0,60871.0,0.004]
[1727964470779,0.328553,60873.0,60871.0,0.004]
[1727964471005,0.164279,60872.0,60871.0,0.004]
[1727964471289,0.164281,60871.0,60870.0,0.001634]
[1727964471994,0.164281,60871.0,60870.0,0.005634]
[1727964472216,0.164281,60871.0,60870.0,0.001634]
[1727964473352,0.0815,60878.0,60872.0,0.002]
[1727964473586,0.0815,60878.0,60870.0,0.001634]
[1727964473587,0.24670038,60873.0,60870.0,0.001634]
[1727964473866,0.0815,60878.0,60870.0,0.001634]
[1727964473867,0.164281,60871.0,60870.0,0.001634]
[1727964474121,0.59928472,60871.0,60870.0,0.001634]
[1727964474373,0.164281,60871.0,60870.0,0.001634]
[1727964474856,0.59928472,60871.0,60870.0,0.001634]
[1727964475327,0.86035115,60871.0,60870.0,0.001634]
[1727964475580,0.123,60870.0,60857.0,0.24670038]
[1727964475805,0.59931972,60858.0,60857.0,0.24670038]
[1727964476062,0.164316,60858.0,60857.0,0.24670038]
[1727964476298,0.328622,60861.0,60853.0,0.0907]
[1727964476299,0.164327,60854.0,60853.0,0.0907]
[1727964476781,0.164327,60854.0,60853.0,0.0817]
[1727964477221,0.164327,60854.0,60853.0,0.0857]
[1727964477718,0.164327,60854.0,60853.0,0.0817]
[1727964477943,0.164327,60854.0,60853.0,0.0847]
[1727964478173,0.164327,60854.0,60853.0,0.0817]
[1727964478629,0.166327,60854.0,60853.0,0.0817]
[1727964478851,0.164327,60854.0,60853.0,0.0817]
[1727964479535,0.164327,60854.0,60853.0,0.0907]
[1727964479774,0.164316,60859.0,60858.0,0.009]
[1727964480009,0.164316,60859.0,60858.0,0.011]
[1727964480534,0.164316,60859.0,60853.0,0.0817]
[1727964480535,0.169327,60854.0,60853.0,0.0917]
[1727964480799,0.164327,60854.0,60853.0,0.0907]
[1727964481326,0.328562,60872.0,60864.0,0.009]
[1727964481594,0.164268,60876.0,60875.0,0.004]
[1727964481857,0.24670038,60889.0,60877.0,0.009]
[1727964481858,0.41096238,60879.0,60877.0,0.009]
[1727964482116,0.328479,60887.0,60877.0,0.175265]
[1727964482354,0.328484,60886.0,60877.0,0.011]
[1727964482595,0.19082975,60878.0,60877.0,0.011]
[1727964483570,0.165079,60878.0,60877.0,0.011]
[1727964483819,0.165079,60878.0,60877.0,0.004]
[1727964484063,0.164268,60876.0,60875.0,0.019]
[1727964484323,0.164268,60876.0,60875.0,0.01]
[1727964484576,0.164295,60866.0,60865.0,0.009]
[1727964484807,0.164303,60863.0,60862.0,0.009]
[1727964485313,0.492902,60864.0,60863.0,0.011]
[1727964485553,0.1643,60864.0,60863.0,0.011]
[1727964485795,0.1643,60864.0,60854.0,0.0955]
[1727964485796,0.0257576,60871.0,60868.0,0.009]
[1727964486034,0.16766948,60902.0,60877.0,0.173265]
[1727964486035,0.57516738,60889.0,60877.0,0.173265]
[1727964486272,0.57516738,60889.0,60877.0,0.009]
[1727964486273,0.328502,60883.0,60877.0,0.009]
[1727964486504,0.164259,60880.0,60877.0,0.01663658]
[1727964486804,0.165079,60878.0,60877.0,0.01663658]
[1727964487045,0.165079,60878.0,60877.0,0.01163658]
[1727964487281,0.165079,60878.0,60877.0,0.004]
[1727964487759,0.000817,60878.0,60877.0,0.011]
[1727964487993,0.165079,60878.0,60877.0,0.011]
[1727964488262,0.165079,60878.0,60877.0,0.01478812]
[1727964488510,0.164281,60871.0,60870.0,0.001634]
[1727964488746,0.165079,60878.0,60877.0,0.007]
[1727964488982,0.165079,60878.0,60877.0,0.009]
[1727964489231,0.165079,60878.0,60877.0,0.007]
[1727964489497,0.000817,60878.0,60877.0,0.016]
[1727964489731,0.000817,60878.0,60877.0,0.180265]
[1727964489976,0.000817,60878.0,60877.0,0.318045]
[1727964490214,0.000817,60878.0,60877.0,0.327045]
[1727964490445,0.24670038,60889.0,60880.0,0.006]
[1727964490688,0.41093338,60889.0,60888.0,0.011]
[1727964490930,0.41093338,60889.0,60877.0,0.14478]
[1727964490931,0.24670038,60889.0,60886.0,0.004]
[1727964491170,0.164254,60881.0,60880.0,0.009]
[1727964491414,0.164262,60878.0,60877.0,0.0939]
[1727964491651,0.164259,60880.0,60879.0,0.009]
[1727964491924,0.328499,60883.0,60876.0,0.002]
[1727964491925,0.164265,60877.0,60876.0,0.002]
[1727964492172,0.164265,60877.0,60876.0,0.009]
[1727964492446,0.328502,60883.0,60881.0,0.004]
[1727964492677,0.73940938,60888.0,60887.0,0.009]
[1727964493159,0.492709,60888.0,60887.0,0.009]
[1727964493923,0.166235,60888.0,60887.0,0.009]
[1727964494480,0.002,60888.0,60887.0,0.018]
[1727964494737,0.164235,60888.0,60887.0,0.004]
[1727964494967,0.166235,60888.0,60887.0,0.004]
[1727964495430,0.002,60888.0,60887.0,0.173238]
[1727964495437,0.002,60888.0,60887.0,0.268038]
[1727964495705,0.000817,60900.0,60899.0,0.175206]
[1727964495939,0.000817,60900.0,60899.0,0.011]
[1727964496191,0.328351,60911.0,60899.0,0.011]
[1727964496426,0.164972,60918.0,60917.0,0.009]
[1727964497387,0.000817,60918.0,60911.0,0.004]
[1727964497906,0.164173,60911.0,60910.0,0.004]
[1727964498711,0.164182,60908.0,60907.0,0.009]
[1727964499517,0.43500372,60914.0,60899.0,0.0991]
[1727964499748,0.164173,60911.0,60910.0,0.004]
[1727964500244,0.328354,60910.0,60907.0,0.012]
[1727964500766,0.164252,60882.0,60880.0,0.004]
[1727964500992,0.164252,60882.0,60879.0,0.24670038]
[1727964500993,0.1,60899.0,60887.0,0.004]
[1727964501258,0.164227,60891.0,60890.0,0.004]
[1727964501861,0.164226,60892.0,60891.0,0.004]
[1727964502299,0.328451,60892.0,60887.0,0.004]
[1727964502536,0.164257,60880.0,60870.0,0.25033438]
[1727964502773,0.328509,60882.0,60881.0,0.004]
[1727964503008,0.328506,60882.0,60881.0,0.004]
[1727964503250,0.492758,60882.0,60881.0,0.004]
[1727964503511,0.164268,60876.0,60875.0,0.002]
[1727964503769,0.328514,60881.0,60880.0,0.009]
[1727964504020,0.492768,60881.0,60880.0,0.009]
[1727964504289,0.51851779,60881.0,60880.0,0.009]
[1727964504551,0.02574979,60881.0,60878.0,0.004]
[1727964504804,0.164257,60880.0,60879.0,0.25070038]
[1727964505033,0.164257,60880.0,60879.0,0.02957004]
[1727964505262,0.164257,60880.0,60879.0,0.004]
[1727964505768,0.164273,60874.0,60873.0,0.004]
[1727964506106,0.328543,60875.0,60870.0,0.003634]
[1727964506107,0.164281,60871.0,60870.0,0.001634]
[1727964506344,0.164281,60871.0,60870.0,0.005634]
[1727964506581,0.164281,60871.0,60870.0,0.001634]
[1727964507075,0.164281,60871.0,60870.0,0.005634]
[1727964507812,0.164281,60871.0,60870.0,0.001634]
[1727964508059,0.19003575,60871.0,60870.0,0.005634]
[1727964508981,0.19103575,60871.0,60870.0,0.008634]
[1727964511487,0.288281,60871.0,60870.0,0.001634]
[1727964511704,0.288281,60871.0,60855.0,0.24670038]
[1727964511705,0.164322,60856.0,60855.0,0.24670038]
[1727964511933,0.69932572,60856.0,60855.0,0.24670038]
[1727964512169,0.264327,60854.0,60853.0,0.0817]
[1727964513588,0.268327,60854.0,60853.0,0.0817]
[1727964513804,0.367327,60854.0,60853.0,0.0817]
[1727964514048,0.363327,60854.0,60853.0,0.0817]
[1727964515750,0.363327,60854.0,60841.0,0.0116]
[1727964515751,0.26436,60842.0,60841.0,0.0116]
[1727964516215,0.28736,60842.0,60841.0,0.0116]
[1727964516452,0.28736,60842.0,60827.0,0.24670038]
[1727964516453,0.1991,60833.0,60827.0,0.24670038]
[1727964516707,0.72240072,60828.0,60827.0,0.24670038]
[1727964516942,0.72240072,60828.0,60819.0,0.001634]
[1727964516943,0.264433,60815.0,60809.0,0.001634]
[1727964517235,0.164446,60810.0,60809.0,0.001634]
[1727964517476,0.69944972,60810.0,60809.0,0.001634]
[1727964517939,0.96653643,60810.0,60809.0,0.001634]
[1727964518179,0.92309672,60810.0,60800.0,4e-05]
[1727964518407,0.92309672,60810.0,60796.0,0.24670038]
[1727964518408,0.264481,60797.0,60796.0,0.24670038]
[1727964518661,0.72248472,60797.0,60796.0,0.23270038]
[1727964518898,0.19027176,60797.0,60796.0,0.23270038]
[1727964519156,0.02579076,60797.0,60796.0,0.009]
[1727964519399,0.328938,60802.0,60793.0,0.0912]
[1727964519400,0.164476,60799.0,60798.0,0.009]
[1727964519919,0.164476,60799.0,60793.0,0.0912]
[1727964519920,0.02578653,60801.0,60800.0,0.009]
[1727964520159,0.57561938,60806.0,60800.0,0.009]
[1727964520402,0.114,60810.0,60803.0,0.009]
[1727964520403,0.164456,60807.0,60803.0,0.009]
[1727964520622,0.16445,60809.0,60808.0,0.009]
[1727964520871,0.164438,60813.0,60812.0,0.009]
[1727964521341,0.35463649,60818.0,60812.0,0.009]
[1727964521342,0.02578449,60818.0,60812.0,0.009]
[1727964521556,0.02578449,60818.0,60806.0,0.57561138]
[1727964521557,0.164428,60817.0,60814.0,0.009]
[1727964521784,0.32883,60822.0,60814.0,0.009]
[1727964522006,0.46078362,60829.0,60818.0,0.009]
[1727964522007,0.164422,60819.0,60818.0,0.009]
[1727964522493,0.328831,60822.0,60818.0,0.01665578]
[1727964522693,0.328831,60822.0,60818.0,0.00765578]
[1727964522694,0.24670038,60819.0,60818.0,0.00765578]
[1727964522911,0.76383472,60822.0,60812.0,0.004]
[1727964522912,0.164438,60813.0,60812.0,0.004]
[1727964523161,0.59944172,60813.0,60812.0,0.004]
[1727964523406,0.6252223,60813.0,60812.0,0.004]
[1727964523631,0.6252223,60813.0,60812.0,0.01360627]
[1727964523859,0.164425,60818.0,60816.0,0.009]
[1727964524097,0.16318671,60842.0,60816.0,0.009]
[1727964524098,0.24670038,60827.0,60822.0,0.009]
[1727964524322,0.164411,60823.0,60822.0,0.009]
[1727964524543,0.328808,60826.0,60822.0,0.009]
[1727964524881,0.02577803,60827.0,60822.0,0.009]
[1727964525091,0.02577803,60827.0,60818.0,0.328847]
[1727964525092,0.02577803,60827.0,60826.0,0.009]
[1727964525303,0.1644,60827.0,60826.0,0.009]
[1727964525508,0.1644,60827.0,60826.0,0.01661091]
[1727964525509,0.1654,60827.0,60826.0,0.01661091]
[1727964525731,0.001,60827.0,60826.0,0.01661091]
[1727964525927,0.164389,60831.0,60830.0,0.004]
[1727964526552,0.164387,60832.0,60830.0,0.009]
[1727964526784,0.43500372,60843.0,60830.0,0.009]
[1727964526785,0.164379,60835.0,60834.0,0.004]
[1727964527266,0.164379,60835.0,60831.0,0.00760549]
[1727964527267,0.76376172,60835.0,60831.0,0.004]
[1727964527521,0.59938272,60835.0,60834.0,0.004]
[1727964527734,0.59938272,60835.0,60832.0,0.004]
[1727964527735,0.493153,60833.0,60832.0,0.004]
[1727964527974,0.164384,60833.0,60832.0,0.004]
[1727964528187,0.43500372,60841.0,60836.0,0.009]
[1727964528188,0.328727,60841.0,60836.0,0.009]
[1727964528410,0.164373,60837.0,60836.0,0.009]
[1727964528889,0.02577319,60842.0,60841.0,0.009]
[1727964528890,0.16436,60842.0,60841.0,0.009]
[1727964529394,0.328697,60847.0,60809.0,0.105]
[1727964529395,0.493116,60838.0,60837.0,0.004]
[1727964529616,0.43500372,60846.0,60828.0,0.24670038]
[1727964529617,0.164357,60843.0,60842.0,0.004]
[1727964529907,0.24670038,60848.0,60846.0,0.004]
[1727964530079,0.164346,60847.0,60846.0,0.009]
[1727964530409,0.328639,60857.0,60856.0,0.004]
[1727964530624,0.0771,60875.0,60858.0,0.004]
[1727964530816,0.0771,60875.0,60858.0,0.173316]
[1727964530817,0.328606,60863.0,60858.0,0.173316]
[1727964531023,0.24670038,60880.0,60866.0,0.009]